Workbook

Sheet 汇总表1
A1: 附件6
A2: 2019年全区棚户区改造开工情况绩效统计表
A4: 任务 城市 | B4: 合计 | C4: 2019年度国家目标任务 | I4: 2019年国家储备 | O4: 2019年自治区新增任务
C5: 市本级/县/市 | D5: 项目序号 | E5: 项目名称 | F5: 目标责任套数 | G5: 改造套数 | H5: 改造完成率 | I5: 市本级/县/市 | J5: 项目序号 | K5: 项目名称 | L5: 目标责任套数 | M5: 改造套数 | N5: 改造完成率 | O5: 市本级/县/市 | P5: 项目序号 | Q5: 项目名称 | R5: 目标责任套数 | S5: 改造套数 | T5: 改造完成率
A6: 编号栏 | B6: 1=6+12+18 | C6: 2 | D6: 3 | E6: 4 | F6: 5 | G6: 6 | H6: 7=6/5 | I6: 8 | J6: 9 | K6: 10 | L6: 11 | M6: 12 | N6: 13=12/11 | O6: 14 | P6: 15 | Q6: 16 | R6: 17 | S6: 18 | T6: 19=18/17
A7: 2019全区棚改开工合计 | B7: =G7+M7+S7 -> 156032 | F7: =SUM(F8,F33,F65,F89,F98,F101,F109,F135,F143,F152,F203,F226,F246,F259) -> 122883 | G7: =SUM(G8,G33,G65,G89,G98,G101,G109,G135,G143,G152,G203,G226,G246,G259) -> 122113 | H7: =G7/F7 -> 99.37% | L7: =SUM(L8,L33,L65,L89,L98,L101,L109,L135,L143,L152,L203,L226,L246,L259) -> 22335 | M7: =SUM(M8,M33,M65,M89,M98,M101,M109,M135,M143,M152,M203,M226,M246,M259) -> 24003 | N7: =M7/L7 -> 107.47% | R7: =SUM(R8,R33,R65,R89,R98,R101,R109,R135,R143,R152,R203,R226,R246,R259) -> 32191 | S7: =SUM(S8,S33,S65,S89,S98,S101,S109,S135,S143,S152,S203,S226,S246,S259) -> 9916 | T7: =S7/R7 -> 30.80%
A8: 一、南宁市 | B8: =G8+M8+S8 -> 10867 | C8: 合计 | F8: =SUM(F9:F32) -> 7051 | G8: =SUM(G9:G32) -> 7051 | H8: 100.00% | I8: 合计 | L8: =SUM(L9:L14) -> 1999 | M8: =SUM(M9:M14) -> 1999 | N8: 100.00% | O8: 合计 | R8: =SUM(R9:R31) -> 1817 | S8: =SUM(S9:S31) -> 1817 | T8: 21.00%
C9: 西乡塘区 | D9: 1 | E9: 北际路二轻构件片区二期棚户区改造项目 | F9: 264 | G9: 264 | H9: 100.00% | I9: 西乡塘区 | J9: 1 | K9: 北湖小区片区项目(三期) | L9: 863 | M9: 863 | N9: 100.00% | O9: 良庆区 | P9: 1 | Q9: 坛泽村农民安置项目4号地块 | R9: 359 | S9: 359 | T9: 100.00%
C10: 西乡塘区 | D10: 2 | E10: 上尧沿江混合片区棚户区改造项目 | F10: 100 | G10: 100 | H10: 100.00% | I10: 青秀区 | J10: 2 | K10: 二塘煤矿片区棚户区改造项目 | L10: 304 | M10: 304 | N10: 100.00% | O10: 良庆区 | P10: 2 | Q10: 坛泽村农民安置项目5号地块 | R10: 237 | S10: 237 | T10: 100.00%
C11: 西乡塘区 | D11: 3 | E11: 北湖旧货市场片区棚户区改造项目 | F11: 65 | G11: 65 | H11: 100.00% | I11: 江南区 | J11: 3 | K11: 南宁糖业亭洪片区旧城改造项目二期 | L11: 132 | M11: 132 | N11: 100.00% | O11: 良庆区 | P11: 3 | Q11: 坛泽村农民安置项目8号地块 | R11: 408 | S11: 408 | T11: 100.00%
C12: 西乡塘区 | D12: 4 | E12: 北大客运中心片区棚户区改造项目 | F12: 200 | G12: 200 | H12: 100.00% | I12: 兴宁区 | J12: 4 | K12: 杜屋园路片区旧城改造项目 | L12: 130 | M12: 130 | N12: 100.00% | O12: 江南区 | P12: 5 | Q12: 江南区星光大道66号片区旧城改造项目（一期） | R12: 345 | S12: 345 | T12: 100.00%
C13: 西乡塘区 | D13: 5 | E13: 大学东路154号片区棚户区改造项目 | F13: 72 | G13: 72 | H13: 100.00% | I13: 邕宁区 | J13: 5 | K13: 龙岗商务区A2号安置房项目（一期） | L13: 570 | M13: 570 | N13: 100.00% | O13: 西乡塘区 | P13: 8 | Q13: 五里亭片区棚户区改造项目 | R13: 340 | S13: 340 | T13: 100.00%
C14: 西乡塘区 | D14: 6 | E14: 崇左市留邕国有土地原南宁地区教育学院片区棚户区改造项目 | F14: 64 | G14: 64 | H14: 100.00% | O14: 经开区 | P14: 20 | Q14: 南宁汽车配件总厂片区旧城改建项目（二期） | R14: 128 | S14: 128 | T14: 100.00%
C15: 青秀区 | D15: 7 | E15: 二塘煤矿片区棚户区改造项目 | F15: 321 | G15: 321 | H15: 100.00%
C16: 江南区 | D16: 8 | E16: 南宁市2018-2020年棚户区改造项目（第五批）南宁市西园饭店旧城改造项目 | F16: 360 | G16: 360 | H16: 100.00%
C17: 兴宁区 | D17: 9 | E17: 兴宁区长堽片区棚户区改造项目（煤矿社区棚户区住户安置房项目） | F17: 1294 | G17: 1294 | H17: 100.00%
C18: 兴宁区 | D18: 10 | E18: 望州南路广西中路交通建设总公司片区改造项目 | F18: 150 | G18: 150 | H18: 100.00%
C19: 高新区 | D19: 11 | E19: 罗文村棚户区改造项目（三期） | F19: 143 | G19: 143 | H19: 100.00%
C20: 高新区 | D20: 12 | E20: 心圩片区农民新村建设项目（五期） | F20: 21 | G20: 21 | H20: 100.00%
C21: 良庆区 | D21: 13 | E21: 新村村民安置项目11-2、11-4、11-5、11-6号地块（二期） | F21: 1316 | G21: 1316 | H21: 100.00%
C22: 良庆区 | D22: 14 | E22: 南宁市2018-2020年棚户区改造项目（第二批）那平村农民安置项目2/4号地块（一期） | F22: 641 | G22: 641 | H22: 100.00%
C23: 良庆区 | D23: 15 | E23: 南宁市2018-2020年棚户区改造项目（第二批）那平村农民安置项目2/4号地块（二期） | F23: 56 | G23: 56 | H23: 100.00%
C24: 良庆区 | D24: 16 | E24: 南宁市2018-2020年棚户区改造项目（第二批）玉洞村4/5号农民安置项目（玉洞村E地块） | F24: 529 | G24: 529 | H24: 100.00%
C25: 良庆区 | D25: 17 | E25: 南宁市2018-2020年棚户区改造项目（第二批）玉洞村10号农民安置项目 | F25: 273 | G25: 273 | H25: 100.00%
C26: 良庆区 | D26: 18 | E26: 南宁市2018-2020年棚户区改造项目（第三批）玉洞村10号农民安置项目地块二 | F26: 161 | G26: 161 | H26: 100.00%
C27: 良庆区 | D27: 19 | E27: 南宁市2018-2020年棚户区改造项目（第三批）良庆社区1、2号地块范围内农民安置项目 | F27: 189 | G27: 189 | H27: 100.00%
C28: 良庆区 | D28: 20 | E28: 良庆社区12-1号农民安置项目 | F28: 149 | G28: 149 | H28: 100.00%
C29: 良庆区 | D29: 21 | E29: 良庆社区12-2号农民安置项目 | F29: 204 | G29: 204 | H29: 100.00%
C30: 邕宁区 | D30: 22 | E30: 南宁市2018-2020年棚户区改造项目（第三批）蒲新小区P1号安置房项目（一期） | F30: 350 | G30: 350 | H30: 100.00%
C31: 武鸣区 | D31: 23 | E31: 南门片区改造项目 | F31: 85 | G31: 85 | H31: 100.00%
C32: 隆安县 | D32: 24 | E32: 县委党校棚户区改造项目 | F32: 44 | G32: 44 | H32: 100.00%
A33: 二、柳州市 | B33: =G33+M33+S33 -> 12189 | C33: 合计 | F33: 11061 | G33: =SUM(G34:G64) -> 11061 | H33: =G33/F33 -> 100.00% | I33: 合计 | L33: 0 | M33: =SUM(M34:M37) -> 1128 | O33: 合计 | R33: 11020 | S33: =SUM(S34:S64) -> 0 | T33: =S33/R33 -> 0.00%
C34: 市本级 | D34: 1 | E34: 柳东新区南部二期 | F34: 152 | G34: 152 | H34: 100.00% | I34: 市本级 | J34: 1 | K34: 江湾村安置房（二） | L34: 0 | M34: 320
C35: 市本级 | D35: 2 | E35: 柳东新区蚂蟥屯安置小区（二） | F35: 58 | G35: 58 | H35: 100.00% | I35: 市本级 | J35: 2 | K35: 白露村改造项目（F-3-4） | L35: 0 | M35: 403
C36: 市本级 | D36: 3 | E36: 白沙村城中村（二） | F36: 600 | G36: 600 | H36: 100.00% | I36: 市本级 | J36: 3 | K36: 山居馨苑（一） | L36: 0 | M36: 105
C37: 市本级 | D37: 4 | E37: 静兰独秀苑三期（三） | F37: 300 | G37: 300 | H37: 100.00% | I37: 鹿寨县 | J37: 4 | K37: 鹿寨县鹿寨镇片区棚户区改造二期项目 | L37: 0 | M37: 300
C38: 市本级 | D38: 5 | E38: 丽景嘉苑（二） | F38: 192 | G38: 192 | H38: 100.00%
C39: 市本级 | D39: 6 | E39: 柳东新区蚂蝗屯安置小区 | F39: 73 | G39: 73 | H39: 100.00%
C40: 市本级 | D40: 7 | E40: 祥鹅佳苑安置房项目 | F40: 1053 | G40: 1053 | H40: 100.00%
C41: 市本级 | D41: 8 | E41: 雒容镇棚户区改造项目（南部四期） | F41: 588 | G41: 588 | H41: 100.00%
C42: 市本级 | D42: 9 | E42: 柳东新区盘古棚户区改造项目 | F42: 448 | G42: 448 | H42: 100.00%
C43: 市本级 | D43: 10 | E43: 双仁棚户区改造项目 | F43: 500 | G43: 500 | H43: 100.00%
C44: 市本级 | D44: 11 | E44: 胜利小区四区一期（九号地块） | F44: 286 | G44: 286 | H44: 100.00%
C45: 市本级 | D45: 12 | E45: 胜利小区四区一期（十号地块） | F45: 139 | G45: 139 | H45: 100.00%
C46: 市本级 | D46: 13 | E46: 白沙村城中村（E47、C61、F21） | F46: 911 | G46: 911 | H46: 100.00%
C47: 市本级 | D47: 14 | E47: 北部生态新区中房绿景棚户区改造项目B区 | F47: 368 | G47: 368 | H47: 100.00%
C48: 市本级 | D48: 15 | E48: 胜利小区三区一期（十一号地块） | F48: 177 | G48: 177 | H48: 100.00%
C49: 市本级 | D49: 16 | E49: 胜利小区四区（十四号地块） | F49: 196 | G49: 196 | H49: 100.00%
C50: 市本级 | D50: 17 | E50: 胜利小区四区（十五号地块） | F50: 229 | G50: 229 | H50: 100.00%
C51: 市本级 | D51: 18 | E51: 白沙村城中村（E-3-7） | F51: 564 | G51: 564 | H51: 100.00%
C52: 市本级 | D52: 19 | E52: 白露村改造项目（F-3-4） | F52: 417 | G52: 417 | H52: 100.00%
C53: 市本级 | D53: 20 | E53: 白沙雅筑（长风路2号） | F53: 105 | G53: 105 | H53: 100.00%
C54: 市本级 | D54: 21 | E54: 江湾村安置房（一） | F54: 405 | G54: 405 | H54: 100.00%
C55: 市本级 | D55: 22 | E55: 广西凤糖白沙制糖有限责任公司城市棚户区改造 | F55: 96 | G55: 96 | H55: 100.00%
C56: 柳江区 | D56: 23 | E56: 广西凤糖柳江制糖有限责任公司城市棚户区改造项目 | F56: 48 | G56: 48 | H56: 100.00%
C57: 柳江区 | D57: 24 | E57: 柳州市柳江区城中村棚户区改造三期工程 | F57: 920 | G57: 920 | H57: 100.00%
C58: 柳江区 | D58: 25 | E58: 嘉元柳江城市棚户区改造项目 | F58: 525 | G58: 525 | H58: 100.00%
C59: 柳城县 | D59: 26 | E59: 柳城县靖西村棚户区改造项目（二） | F59: 300 | G59: 300 | H59: 100.00%
C60: 柳城县 | D60: 27 | E60: 正殿村棚户区改造项目 | F60: 400 | G60: 400 | H60: 100.00%
C61: 柳城县 | D61: 28 | E61: 柳城县正殿村棚户区改造项目 | F61: 35 | G61: 35 | H61: 100.00%
C62: 鹿寨县 | D62: 29 | E62: 鹿寨县鹿寨镇片区棚户区改造项目（二） | F62: 120 | G62: 120 | H62: 100.00%
C63: 融水县 | D63: 30 | E63: 融水苗族自治县融水镇旧城区棚户区改造项目（一期） | F63: 726 | G63: 726 | H63: 100.00%
C64: 三江县 | D64: 31 | E64: 三江县大洲岛棚户区改造项目（二） | F64: 130 | G64: 130 | H64: 100.00%
A65: 三、桂林市 | B65: =G65+M65+S65 -> 7924 | C65: 合计 | F65: =SUM(F66:F88) -> 5984 | G65: =SUM(G66:G88) -> 5984 | H65: 100.00% | I65: 合计 | L65: =SUM(L66:L88) -> 0 | M65: 0 | N65: 0.00% | O65: 合计 | R65: 4850 | S65: =SUM(S66:S88) -> 1940 | T65: =S65/R65 -> 40.00%
C66: 市本级 | D66: 1 | E66: 桂林市奇峰路9号（原桂林造纸厂)棚户区改造项目 | F66: 235 | G66: 235 | H66: 100.00% | O66: 市本级 | P66: 1 | Q66: 七星区穿山塔山片区棚户区改造项目二期 | R66: 1940 | S66: 1940 | T66: =S66/R66 -> 100.00%
C67: 市本级 | D67: 2 | E67: 桂林市骖鸾路12号危旧房改住房（棚户区）改造项目 | F67: 158 | G67: 158 | H67: 100.00%
C68: 市本级 | D68: 3 | E68: 和平片区棚户区改造安置房项目二期 | F68: 1412 | G68: 1412 | H68: 100.00%
C69: 市本级 | D69: 4 | E69: 七星区福隆园片区（小村二期）棚户区改造项目二期 | F69: 222 | G69: 222 | H69: 100.00%
C70: 市本级 | D70: 5 | E70: 桂林市榕荫路4、6、8、10号机关住宅小区棚户区改造工程 | F70: 120 | G70: 120 | H70: 100.00%
C71: 市本级 | D71: 6 | E71: 桂林市叠彩区建干北路棚户区（城中村）改造项目（一期） | F71: 310 | G71: 310 | H71: 100.00%
C72: 平乐县 | D72: 7 | E72: 平乐县茶江制药厂饮料厂片区棚户区改造项目 | F72: 141 | G72: 141 | H72: 100.00%
C73: 平乐县 | D73: 8 | E73: 平乐县马渭片区危旧房改造项目二期 | F73: 40 | G73: 40 | H73: 100.00%
C74: 平乐县 | D74: 9 | E74: 平乐县平乐镇老街片区危旧房改造项目二期 | F74: 188 | G74: 188 | H74: 100.00%
C75: 平乐县 | D75: 10 | E75: 平乐镇老街片区棚户区改造项目三期（平乐县中华街原政府大院安置房项目） | F75: 336 | G75: 336 | H75: 100.00%
C76: 平乐县 | D76: 11 | E76: 平乐县平乐镇中华街正西街片区危旧房改造项目 | F76: 706 | G76: 706 | H76: 100.00%
C77: 平乐县 | D77: 12 | E77: 平乐县平乐镇月城嘉乐片区危旧房改造项目 | F77: 110 | G77: 110 | H77: 100.00%
C78: 龙胜县 | D78: 13 | E78: 龙胜县盛园路棚户区改造项目 | F78: 66 | G78: 66 | H78: 100.00%
C79: 永福县 | D79: 14 | E79: 永福县十字街旧城区棚户区改造项目 | F79: 367 | G79: 367 | H79: 100.00%
C80: 永福县 | D80: 15 | E80: 永福县县城棚户区改造项目（一期） | F80: 292 | G80: 292 | H80: 100.00%
C81: 永福县 | D81: 16 | E81: 永福县旧农机厂棚户区改造项目 | F81: 35 | G81: 35 | H81: 100.00%
C82: 灵川县 | D82: 17 | E82: 灵川县棚户区改造项目（三期） | F82: 212 | G82: 212 | H82: 100.00%
C83: 灵川县 | D83: 18 | E83: 灵川县城片区棚户区改造项目 | F83: 243 | G83: 243 | H83: 100.00%
C84: 恭城瑶族自治县 | D84: 19 | E84: 恭城瑶族自治县2018-2020年棚户区（城中村）改造项目 | F84: 400 | G84: 400 | H84: 100.00%
C85: 资源县 | D85: 20 | E85: 资源县资源镇城中村棚户区改造项目一期 | F85: 95 | G85: 95 | H85: 100.00%
C86: 阳朔县 | D86: 21 | E86: 阳朔县外语实验中学棚户区（危房）改造建设项目 | F86: 18 | G86: 18 | H86: 100.00%
C87: 灌阳县 | D87: 22 | E87: 灌阳县木材公司、木材加工厂棚户区改造项目 | F87: 78 | G87: 78 | H87: 100.00%
C88: 荔浦市 | D88: 23 | E88: 荔浦县荔城镇棚户区改建工程一期 | F88: 200 | G88: 200 | H88: 100.00%
A89: 四、梧州市 | B89: =G89+M89+S89 -> 5662 | C89: 合计 | F89: =SUM(F90:F97) -> 3766 | G89: =SUM(G90:G97) -> 4151 | H89: 110.22% | I89: 合计 | L89: =SUM(L90:L97) -> 333 | M89: =SUM(M90:M97) -> 365 | N89: =M89/L89 -> 109.61% | O89: 合计 | R89: =SUM(R90:R97) -> 1331 | S89: =SUM(S90:S97) -> 1146 | T89: =S89/R89 -> 86.10%
C90: 市本级 | E90: 梧州市长洲岛棚户区改造（一期）项目I阶段 | F90: 300 | G90: 300 | H90: 100.00% | I90: 藤县 | K90: 藤县藤州镇（田寮片区）棚户区改造工程项目（二期）Ⅱ阶段 | L90: 303 | M90: 335 | N90: 110.56% | O90: 市本级 | Q90: 角嘴后路22号危旧房棚户区改造项目 | R90: 10 | S90: 10 | T90: 100.00% | V90: =SUM(S90:S92,S93:S97,S95) -> 1206
C91: 市本级 | E91: 两龙片区棚户区改造项目（一期）Ⅰ阶段 | F91: 1230 | G91: 1510 | H91: 122.76% | I91: 蒙山县 | K91: 文圩镇棚户区改造工程（三期） | L91: 30 | M91: 30 | N91: 100.00% | O91: 市本级 | Q91: 梧州市长洲岛棚户区改造（一期）项目Ⅱ阶段 | R91: 520 | S91: 520 | T91: 100.00%
C92: 市本级 | E92: 两龙片区棚户区改造项目（一期）Ⅱ阶段 | F92: 162 | G92: 232 | H92: 143.21% | O92: 市本级 | Q92: 两龙片区棚户区改造项目（一期）Ⅲ阶段 | R92: 304 | S92: 119 | T92: 39.14%
C93: 市本级 | E93: 苍海片区（城中村）改造项目（一期） | F93: 50 | G93: 50 | H93: 100.00% | O93: 藤县 | Q93: 藤县机关事务管理局大院棚户区（危旧房）改造项目（二期） | R93: 269 | S93: 269 | T93: 100.00%
C94: 市本级 | E94: 粤桂合作特别实验区江北片区棚户区改造项目 | F94: 712 | G94: 712 | H94: 100.00% | O94: 藤县 | Q94: 藤县藤州镇东胜棚户区（城中村）改造项目（二期） | R94: 168 | S94: 168 | T94: 100.00%
C95: 岑溪市 | E95: 岑溪市城北探花城中村棚户区改造工程(一期） | F95: 952 | G95: 952 | H95: 100.00% | O95: 蒙山县 | Q95: 蒙山镇城区棚户区改造工程（四期） | R95: 60 | S95: 60 | T95: 100.00%
C96: 藤县 | E96: 藤县藤州镇东胜棚户区（城中村）改造项目（一期） | F96: 250 | G96: 257 | H96: 102.80%
C97: 蒙山县 | E97: 蒙山镇城区棚户区改造工程（三期） | F97: 110 | G97: 138 | H97: =G97/F97 -> 125.45%
A98: 五、北海市 | B98: =G98+M98+S98 -> 241 | C98: 合计 | F98: 241 | G98: 241 | H98: 100.00% | I98: 合计 | O98: 合计 | R98: 439 | S98: 0 | T98: 0.00%
C99: 合浦县 | D99: 1 | E99: 合浦县机关事务管理局廉州镇青云南路2号棚户区改造项目 | F99: 48 | G99: 48 | H99: 100.00%
C100: 合浦县 | D100: 2 | E100: 合浦县工信局罐头厂危旧房改住房改造项目 | F100: 193 | G100: 193 | H100: 100.00%
A101: 六、防城港市 | B101: =G101+M101+S101 -> 1737 | C101: 合计 | F101: =SUM(F102:F108) -> 1514 | G101: =SUM(G102:G108) -> 1514 | H101: 100.00% | I101: 合计 | O101: 合计 | R101: =SUM(R102:R108) -> 1114 | S101: =SUM(S102:S108) -> 223 | T101: =S101/R101 -> 20.02%
C102: 市本级 | D102: 1 | E102: 2019年防城港市经开区安置区棚户区改造项目（大板二期小区、港安新区） | F102: 673 | G102: 673 | H102: 100.00% | O102: 市本级 | P102: 1 | Q102: 2019年防城港市经开区安置区棚户区改造项目（大板二期小区、港安新区） | R102: 1114 | S102: 223 | T102: =S102/R102 -> 20.02% | U102: 有施工许可
C103: 市本级 | D103: 2 | E103: 2019年防城区堤路园安置项目一期 | F103: 490 | G103: 490 | H103: 100.00%
C104: 市本级 | D104: 3 | E104: 2019年防城区堤路园(二期） | F104: 125 | G104: 125 | H104: 100.00%
C105: 市本级 | D105: 4 | E105: 2019年防城区棚户区改造工程(第三批)上三滩安置点项目 | F105: 66 | G105: 66 | H105: 100.00%
C106: 市本级 | D106: 5 | E106: 2019年防城区文昌街道佛堂村新村安置点 | F106: 65 | G106: 65 | H106: 100.00%
C107: 上思县 | D107: 6 | E107: 2019年上思县化工综合厂棚户区改造项目 | F107: 60 | G107: 60 | H107: 100.00%
C108: 上思县 | D108: 7 | E108: 2019年上思县水利电业有限公司城市棚户区改造项目 | F108: 35 | G108: 35 | H108: 100.00%
A109: 七、钦州市 | B109: =G109+M109+S109 -> 10213 | C109: 合计 | F109: =SUM(F110:F134) -> 6791 | G109: =SUM(G110:G134) -> 6791 | H109: 100.00% | I109: 合计 | L109: =SUM(L110:L134) -> 1909 | M109: =SUM(M110:M134) -> 3079 | N109: =M109/L109 -> 161.29% | O109: 合计 | R109: 3141 | S109: 343 | T109: =S109/R109 -> 10.92%
C110: 市本级 | D110: 1 | E110: 钦州市东边塘安置小区项目 | F110: 99 | G110: 99 | H110: 100.00% | I110: 市本级 | J110: 1 | K110: 海水养殖场（二期） | L110: 43 | M110: 66 | N110: 153.00% | O110: 钦北区 | P110: 1 | Q110: 钦北区长田街道办片区棚户区改造项目二期 | R110: 343 | S110: 343 | T110: 100.00%
C111: 市本级 | D111: 2 | E111: 钦州市中医医院危旧房改住房改造项目 | F111: 48 | G111: 48 | H111: 100.00% | I111: 市本级 | J111: 2 | K111: 钦州市缫丝厂片区旧城改造项目(二期) | L111: 47 | M111: 47 | N111: 100.00%
C112: 市本级 | D112: 3 | E112: 广西沿海公路局危旧房改住房改造项目 | F112: 38 | G112: 38 | H112: 100.00% | I112: 市本级 | J112: 3 | K112: 钦北区长田街道办片区棚户区改造项目一期 | L112: 0 | M112: 150
C113: 市本级 | D113: 4 | E113: 钦州市缫丝厂片区旧城改造项目(二期) | F113: 26 | G113: 26 | H113: 100.00% | I113: 钦州港区 | J113: 4 | K113: 钦州港新城区城中村改造项目F期工程 | L113: 0 | M113: 34
C114: 钦北区 | D114: 5 | E114: 钦北区大寺镇片区棚户区改造项目一期 | F114: 50 | G114: 50 | H114: 100.00% | I114: 灵山县 | J114: 5 | K114: 灵山县鸟官塘城中村棚户区项目（二期） | L114: 0 | M114: 915
C115: 钦北区 | D115: 6 | E115: 钦北区长田街道办片区棚户区改造项目一期 | F115: 390 | G115: 390 | H115: 100.00% | I115: 浦北县 | J115: 6 | K115: 浦北县江城街道北河棚户区屋背麓安置区 | L115: 183 | M115: 183 | N115: 100.00%
C116: 钦州港区 | D116: 7 | E116: 钦州港新城区城中村改造项目F期工程 | F116: 926 | G116: 926 | H116: 100.00% | I116: 浦北县 | J116: 7 | K116: 浦北县江城街道平六棚户区改造枫木安置区 | L116: 200 | M116: 200 | N116: 100.00%
C117: 灵山县 | D117: 8 | E117: 灵山县新圩片区城中村棚户区项目（一期） | F117: 630 | G117: 630 | H117: 100.00% | I117: 浦北县 | J117: 8 | K117: 浦北县小江街道文山一区棚户区综合安置区 | L117: 250 | M117: 250 | N117: 100.00%
C118: 灵山县 | D118: 9 | E118: 灵山县鸟官塘城中村棚户区项目 | F118: 1031 | G118: 1031 | H118: 100.00% | I118: 浦北县 | J118: 9 | K118: 浦北县江城街道合群棚户区改造综合安置区 | L118: 650 | M118: 650 | N118: 100.00%
C119: 灵山县 | D119: 10 | E119: 灵山县马鞍山城中村棚户区改造项目 | F119: 820 | G119: 820 | H119: 100.00% | I119: 浦北县 | J119: 10 | K119: 浦北县江城街道木麻根棚户区综合安置区 | L119: 536 | M119: 536 | N119: 100.00%
C120: 灵山县 | D120: 11 | E120: 灵山县三海片区城中村棚户区项目（一期） | F120: 924 | G120: 924 | H120: 100.00% | I120: 浦北县 | J120: 11 | K120: 浦北县木材加工厂（危旧房）棚户区改造项目 | L120: 0 | M120: 48
C121: 灵山县 | D121: 12 | E121: 灵山县灵城街道丁屋村城中村改造项目 | F121: 68 | G121: 68 | H121: 100.00%
C122: 灵山县 | D122: 13 | E122: 灵山县华侨建筑工程公司危旧房改住房改造项目 | F122: 142 | G122: 142 | H122: 100.00%
C123: 灵山县 | D123: 14 | E123: 灵山县灵城片区城中村棚户区项目 | F123: 636 | G123: 636 | H123: 100.00%
C124: 浦北县 | D124: 15 | E124: 浦北县小江街道平马棚户区综合安置区（一期） | F124: 50 | G124: 50 | H124: 100.00%
C125: 浦北县 | D125: 16 | E125: 浦北县江城街道北河棚户区改造北河坡安置区 | F125: 63 | G125: 63 | H125: 100.00%
C126: 浦北县 | D126: 17 | E126: 浦北县木材加工厂（危旧房）棚户区改造项目 | F126: 72 | G126: 72 | H126: 100.00%
C127: 浦北县 | D127: 18 | E127: 浦北县小江镇北河村委车麓肚队棚户区安置项目 | F127: 33 | G127: 33 | H127: 100.00%
C128: 浦北县 | D128: 19 | E128: 浦北县城科园路越州大道路口（鱼窝头）棚户区安置项目 | F128: 83 | G128: 83 | H128: 100.00%
C129: 浦北县 | D129: 20 | E129: 浦北县小江街道文山二区棚户区安置项目 | F129: 267 | G129: 267 | H129: 100.00%
C130: 浦北县 | D130: 21 | E130: 浦北县张黄镇学堂棚户区改造综合安置区 | F130: 180 | G130: 180 | H130: 100.00%
C131: 浦北县 | D131: 22 | E131: 浦北县小江街道平马棚户区综合安置区（二期） | F131: 50 | G131: 50 | H131: 100.00%
C132: 浦北县 | D132: 23 | E132: 浦北县小江镇北河村委白饭麓棚户区安置项目 | F132: 43 | G132: 43 | H132: 100.00%
C133: 浦北县 | D133: 24 | E133: 浦北县公安局大院棚户区改造项目 | F133: 98 | G133: 98 | H133: 100.00%
C134: 浦北县 | D134: 25 | E134: 浦北县小江派出所棚户区改造项目 | F134: 24 | G134: 24 | H134: 100.00%
A135: 八、贵港市 | B135: =G135+M135+S135 -> 4059 | C135: 合计 | F135: =SUM(F136:F142) -> 2848 | G135: =SUM(G136:G142) -> 2848 | H135: =G135/F135 -> 100.00% | I135: 合计 | L135: 291 | M135: =SUM(M136:M138) -> 291 | N135: =M135/L135 -> 100.00% | O135: 合计 | R135: 4952 | S135: =SUM(S136:S137) -> 920 | T135: =S135/R135 -> 18.58%
C136: 市本级 | D136: 1 | E136: 贵港市棚户区改造项目（二期）永新安置区 | F136: 256 | G136: 256 | H136: 100.00% | I136: 覃塘区 | J136: 1 | K136: 贵港市覃塘区棚户区改造项目 | L136: 216 | M136: 216 | N136: 100.00% | O136: 市本级 | P136: 1 | Q136: 贵港市棚户区改造项目（二期）棉村安置区 | R136: 800 | S136: 800 | T136: 100.00%
C137: 市本级 | D137: 2 | E137: 贵港市棚户区改造项目（二期）棉村安置区 | F137: 384 | G137: 384 | H137: 100.00% | I137: 桂平市 | J137: 2 | K137: 桂平市铺岭棚户区改造项目 | L137: 55 | M137: 55 | N137: 100.00% | O137: 平南县 | P137: 2 | Q137: 平南县城东城西片区棚户区（城中村）改造项目 | R137: 120 | S137: 120 | T137: 100.00%
C138: 覃塘区 | D138: 3 | E138: 贵港市覃塘区棚户区改造项目 | F138: 1068 | G138: 1068 | H138: 100.00% | I138: 平南县 | J138: 3 | K138: 平南县城东城西片区棚户区改造项目(城中村） | L138: 20 | M138: 20 | N138: 100.00%
C139: 桂平市 | D139: 4 | E139: 桂平市铺岭棚户区改造项目 | F139: 217 | G139: 217 | H139: 100.00%
C140: 桂平市 | D140: 5 | E140: 桂平市官冲口瓦窑村棚户区改造项目 | F140: 103 | G140: 103 | H140: 100.00%
C141: 平南县 | D141: 6 | E141: 平南县老城片区棚户区(城中村）改造项目 | F141: 720 | G141: 720 | H141: 100.00%
C142: 平南县 | D142: 7 | E142: 平南县城东城西片区棚户区改造项目(城中村） | F142: 100 | G142: 100 | H142: 100.00%
A143: 九、玉林 | B143: =G143+M143+S143 -> 6683 | C143: 合计 | F143: =SUM(F144:F151) -> 6178 | G143: =SUM(G144:G151) -> 6178 | H143: =G143/F143 -> 100.00% | I143: 合计 | O143: 合计 | R143: =SUM(R144:R148) -> 505 | S143: =SUM(S144:S148) -> 505 | T143: =S143/R143 -> 100.00%
C144: 市直 | D144: 1 | E144: 龙潭产业园棚户区改造项目（二期） | F144: 132 | G144: 132 | H144: 100.00% | O144: 玉州区 | P144: 3 | Q144: 玉州区名山街道绿杨社区（扫帚坡片区）棚户区改造项目（第一期） | R144: 65 | S144: 65 | T144: 100.00%
C145: 市直 | D145: 2 | E145: 玉林市关塘垌周转房棚户区改造项目 | F145: 48 | G145: 48 | H145: 100.00% | O145: 容县 | P145: 6 | Q145: 2018年容县城市棚户区改造项目 | R145: 240 | S145: 240 | T145: 100.00%
C146: 玉东新区 | D146: 3 | E146: 玉东新区大芦城市棚户区改造项目 | F146: 274 | G146: 274 | H146: 100.00% | O146: 兴业 | P146: 7 | Q146: 兴业县石南镇危旧房改造项目 | R146: 200 | S146: 200 | T146: 100.00%
C147: 福绵区 | D147: 4 | E147: 玉林市福绵区2018-2020棚户区改造项目（一期） | F147: 1300 | G147: 1300 | H147: 100.00%
C148: 容县 | D148: 5 | E148: 2018-2020年容县城市棚户区改造项目 | F148: 480 | G148: 480 | H148: 100.00%
C149: 北流市 | D149: 6 | E149: 北流市城北片区棚户区（危旧房、城中村）改造项目 | F149: 1867 | G149: 1867 | H149: 100.00%
C150: 陆川县 | D150: 7 | E150: 陆川县危旧房改造项目 | F150: =1169+884 -> 2053 | G150: =1169+884 -> 2053 | H150: 100.00%
C151: 陆川县 | D151: 8 | E151: 陆川县乌石片区危旧房改造项目 | F151: 24 | G151: 24 | H151: 100.00%
A152: 十、百色市 | B152: =G152+M152+S152 -> 55587 | C152: 合计 | F152: =SUM(F153:F202) -> 44714 | G152: =SUM(G153:G202) -> 44722 | H152: 100.02% | I152: 合计 | L152: =SUM(L153:L202) -> 8758 | M152: =SUM(M153:M202) -> 8758 | N152: =M152/L152 -> 100.00% | O152: 合计 | R152: =SUM(R153:R155) -> 2107 | S152: =SUM(S153:S155) -> 2107 | T152: =S152/R152 -> 100.00%
C153: 市本级 | D153: 1 | E153: 逻索片区城中村改造一期项目 | F153: 69 | G153: 69 | H153: 100.00% | I153: 市本级 | J153: 1 | K153: 百色中山（百胜）片区棚户区改造项目 | L153: 1285 | M153: 1285 | N153: 100.00% | O153: 市本级 | P153: 2 | Q153: 广西驰骋汽车运输有限责任公司棚户区改造项目（一期） | R153: 758 | S153: 758 | T153: 100.00%
C154: 市本级 | D154: 2 | E154: 百色中山（百胜）片区棚户区改造项目 | F154: 1864 | G154: 1864 | H154: 100.00% | I154: 市本级 | J154: 2 | K154: 百东新区2019-2020年棚户区（城中村）改造项目 | L154: 3625 | M154: 3625 | N154: 100.00% | O154: 市本级 | P154: 3 | Q154: 百色市冷冻厂棚户区改造项目 | R154: 272 | S154: 272 | T154: 100.00%
C155: 市本级 | D155: 3 | E155: 百色建新片区棚户区改造项目 | F155: 1929 | G155: 1929 | H155: 100.00% | I155: 市本级 | J155: 3 | K155: 石龙（泵当冻忍）棚户区改造一期项目 | L155: 940 | M155: 940 | N155: 100.00% | O155: 田阳县 | P155: 4 | Q155: 田阳县田州镇棚户区（城中村）改造项目三期 | R155: 1077 | S155: 1077 | T155: 100.00%
C156: 市本级 | D156: 4 | E156: 右江民族医学院棚户区改造二期 | F156: 396 | G156: 396 | H156: 100.00% | I156: 市本级 | J156: 4 | K156: 莲塘片区城中村改造一期项目 | L156: 1296 | M156: 1296 | N156: 100.00%
C157: 市本级 | D157: 5 | E157: 百色市航运公司危旧房改住房改造项目 | F157: 102 | G157: 102 | H157: 100.00% | I157: 市本级 | J157: 5 | K157: 莲塘片区城中村改造二期项目 | L157: 756 | M157: 756 | N157: 100.00%
C158: 市本级 | D158: 6 | E158: 拉域片区棚户区改造项目 | F158: 738 | G158: 738 | H158: 100.00% | I158: 市本级 | J158: 6 | K158: 大同片区城中村改造项目 | L158: 856 | M158: 856 | N158: 100.00%
C159: 市本级 | D159: 7 | E159: 百色市四塘镇棚户区改造（东城景苑）项目二期 | F159: 2268 | G159: 2268 | H159: 100.00%
C160: 右江区 | D160: 8 | E160: 那马片区棚户区改造项目 | F160: 813 | G160: 813 | H160: 100.00%
C161: 右江区 | D161: 9 | E161: 那毕片区城中村改造一期项目 | F161: 1401 | G161: 1401 | H161: 100.00%
C162: 右江区 | D162: 10 | E162: 那毕片区城中村改造二期项目 | F162: 996 | G162: 996 | H162: 100.00%
C163: 右江区 | D163: 11 | E163: 城西片区棚户区改造项目 | F163: 1410 | G163: 1410 | H163: 100.00%
C164: 田阳县 | D164: 12 | E164: 田阳县田州镇棚户区（城中村）改造项目(二期）工程（兴华片区安置点） | F164: 779 | G164: 779 | H164: 100.00%
C165: 田阳县 | D165: 13 | E165: 田阳县田州镇棚户区（城中村）改造项目(二期）工程（南华糖业生活区安置点） | F165: 563 | G165: 563 | H165: 100.00%
C166: 田阳县 | D166: 14 | E166: 田阳县田州镇棚户区（城中村）改造项目(二期）工程（定律大塘片区安置点） | F166: 1020 | G166: 1020 | H166: 100.00%
C167: 田阳县 | D167: 15 | E167: 田阳县田州镇棚户区（城中村）改造项目（一期）工程 | F167: 1323 | G167: 1324 | H167: 100.08%
C168: 田东县 | D168: 16 | E168: 田东县新州片区棚户区改造项目 | F168: 800 | G168: 800 | H168: 100.00%
C169: 田东县 | D169: 17 | E169: 中油广西田东石油化工总厂有限公司职工生活区棚户区改造项目 | F169: 488 | G169: 488 | H169: 100.00%
C170: 田东县 | D170: 18 | E170: 田东县林逢镇城中村改造项目 | F170: 824 | G170: 816 | H170: 99.03%
C171: 田东县 | D171: 19 | E171: 田东职业技术学校危旧房改造项目 | F171: 100 | G171: 100 | H171: 100.00%
C172: 田东县 | D172: 20 | E172: 田东县汽运公司棚户区改造项目 | F172: 18 | G172: 18 | H172: 100.00%
C173: 田东县 | D173: 21 | E173: 田东县田东中学危旧房改造项目 | F173: 288 | G173: 288 | H173: 100.00%
C174: 田东县 | D174: 22 | E174: 广西田东县建筑工程公司危旧房改造项目 | F174: 30 | G174: 30 | H174: 100.00%
C175: 田东县 | D175: 23 | E175: 广西田东县建筑工程公司危旧房改造项目二期工程 | F175: 144 | G175: 152 | H175: 105.56%
C176: 平果县 | D176: 24 | E176: 平果县驮湾片区棚户区改造安置项目 | F176: 5647 | G176: 5647 | H176: 100.00%
C177: 平果县 | D177: 25 | E177: 平果县城北片区棚户区改造安置项目 | F177: 4776 | G177: 4776 | H177: 100.00%
C178: 平果县 | D178: 26 | E178: 平果县雷感一期（和泰苑）项目城中村改造 | F178: 100 | G178: 100 | H178: 100.00%
C179: 德保县 | D179: 27 | E179: 德保县棚户区改造百安小区项目 | F179: 4190 | G179: 4190 | H179: 100.00%
C180: 德保县 | D180: 28 | E180: 德保县福龙小区、城关镇城中村汉龙片区、城关镇城中村牛圩街棚户区改造项目 | F180: 1232 | G180: 1232 | H180: 100.00%
C181: 靖西市 | D181: 29 | E181: 靖西市新靖镇棚户区（城中村）改造项目（一期）宝珠安置点 | F181: 704 | G181: 704 | H181: 100.00%
C182: 靖西市 | D182: 30 | E182: 靖西市新靖镇棚户区（城中村）改造项目（一期）那足安置点 | F182: 1626 | G182: 1626 | H182: 100.00%
C183: 靖西市 | D183: 31 | E183: 靖西市新靖镇棚户区（城中村）改造项目（一期）那耀安置点 | F183: 1918 | G183: 1918 | H183: 100.00%
C184: 靖西市 | D184: 32 | E184: 靖西市新靖镇棚户区（城中村）改造项目（二期） | F184: 1620 | G184: 1620 | H184: 100.00%
C185: 那坡县 | D185: 33 | E185: 那坡县2018-2020年棚户区改造项目（一期） | F185: 569 | G185: 576 | H185: =G185/F185 -> 101.23%
C186: 凌云县 | D186: 34 | E186: 凌云县公路局棚户区改造项目 | F186: 84 | G186: 84 | H186: =G186/F186 -> 100.00%
C187: 凌云县 | D187: 35 | E187: 凌云县泗城镇洪片区危旧房拆除新建项目 | F187: 266 | G187: 266 | H187: =G187/F187 -> 100.00%
C188: 乐业县 | D188: 36 | E188: 城镇危旧房、房改房改造项目 | F188: 300 | G188: 300 | H188: 100.00%
C189: 乐业县 | D189: 37 | E189: 广西雅长兰科植物国家级自然保护区深山远山职工搬迁棚户区改造项目 | F189: 72 | G189: 72 | H189: 100.00%
C190: 乐业县 | D190: 38 | E190: 当站至各立城中村改造项目 | F190: 150 | G190: 150 | H190: 100.00%
C191: 田林县 | D191: 39 | E191: 田林县城区城中村改造项目 | F191: 1175 | G191: 1175 | H191: 100.00%
C192: 田林县 | D192: 40 | E192: 田林县城区危旧房改造项目 | F192: 517 | G192: 517 | H192: 100.00%
C193: 田林县 | D193: 41 | E193: 田林县国有垦区危旧房改造项目 | F193: 20 | G193: 20 | H193: 100.00%
C194: 西林县 | D194: 42 | E194: 西林县八达镇城区火亮山棚户区改造工程项目 | F194: 110 | G194: 110 | H194: 100.00%
C195: 西林县 | D195: 43 | E195: 西林县阳光小区二期工程棚户区改造项目 | F195: 59 | G195: 59 | H195: 100.00%
C196: 西林县 | D196: 44 | E196: 西林县桔乡家园棚户区改造项目 | F196: 83 | G196: 83 | H196: 100.00%
C197: 隆林县 | D197: 45 | E197: 隆林各族自治县棚户区改造项目城南市场旧址安置点 | F197: 220 | G197: 220 | H197: =G197/F197 -> 100.00%
C198: 隆林县 | D198: 46 | E198: 隆林各族自治县棚户区改造项目油脂厂安置点 | F198: 428 | G198: 428 | H198: 100.00%
C199: 隆林县 | D199: 47 | E199: 隆林县饮食服务公司棚户区改造项目 | F199: 42 | G199: 42 | H199: 100.00%
C200: 隆林县 | D200: 48 | E200: 隆林县农机管理中心棚户区改造项目 | F200: 22 | G200: 22 | H200: 100.00%
C201: 隆林县 | D201: 49 | E201: 隆林县民族博物苑棚户区改造项目 | F201: 359 | G201: 359 | H201: 100.00%
... 72 more rows
